Cogmind - Beta 16 @@@ ROGUE MODE // 2025.10.26 @ 01:20:52 Player: shapeshifter Result: Destroyed by D-53 Grenadier with Mini Grenade Launcher Performance ------------- Evolutions (0) 0 Regions Visited (2) 400 Robots Destroyed (19) 95 Value Destroyed (384) 384 Prototype IDs (0) 0 Alien Tech Used (0) 0 Bonus (35) 35 TOTAL SCORE: 914 Bonus ------- Follower Combat Kills 35 Cogmind --------- Core Integrity 0/250 Matter 260/300 Energy 100/100 System Corruption 3% Temperature Cool (0) Movement Core (100) Ox1 Location -10/Mines Parts ------- > --- POWER (1) -------- (None) > --- PROPULSION (2) --- (None) > --- UTILITY (2) ------ Small Storage Unit > --- WEAPON (2) ------- (None) > --- INVENTORY (8) ---- Light Treads High-capacity Matter Pod (200) Seismic Detector Seismic Detector Hacking Suite Peak State ------------ > --- POWER ------------ Light Ion Engine > --- PROPULSION ------- Light Treads Light Treads > --- UTILITY ---------- Small Storage Unit Seismic Detector > --- WEAPON ----------- Assault Rifle Light Assault Rifle > --- INVENTORY -------- Light Ion Engine Wheel Compact Wheel Improved Terrain Scanner Seismic Detector Seismic Detector EM Pulse Gun Grenade Launcher [Rating: 8] Favorites ----------- Power Ion Engine Engine Ion Engine Propulsion Light Treads Treads Light Treads Utility Small Storage Unit Device Seismic Detector Storage Small Storage Unit Protection Light Armor Plating Weapon Light Assault Rifle Ballistic Gun Light Assault Rifle Launcher Grenade Launcher Build | -11 -10 -10 ------- Run | Yrd Mat Min Slots Evolved . | . . . Power . | . . . Propulsion . | . . . Utility . | . . . Weapon . | . . . Parts Attached 17 | 7 6 4 Power 3 | 1 1 1 Engine 3 | 1 1 1 Core . | . . . Reactor . | . . . Propulsion 5 | 2 3 . Treads 5 | 2 3 . Leg . | . . . Wheel . | . . . Hover . | . . . Flight . | . . . Utility 4 | 2 1 1 Device 2 | 1 1 . Storage 1 | 1 . . Processor . | . . . Hackware . | . . . Protection 1 | . . 1 Artifact . | . . . Weapon 5 | 2 1 2 Energy Gun . | . . . Energy Cannon . | . . . Ballistic Gun 4 | 2 1 1 Ballistic Cannon . | . . . Launcher 1 | . . 1 Special Weapon . | . . . Impact Weapon . | . . . Slashing Weapon . | . . . Piercing Weapon . | . . . Special Melee Weapon . | . . . Unidentified Prototypes . | . . . Parts Lost 10 | . . 10 Power 2 | . . 2 Propulsion 2 | . . 2 Utility 2 | . . 2 Weapon 4 | . . 4 Highest Loss Streak 9 | . . 9 To Critical Strikes . | . . . Average Backups 7 | 3 7 7 Power . | . 1 . Propulsion 1 | 1 1 1 Utility 3 | . 3 4 Weapon 1 | . 1 1 Tool/Special . | . . . Unused Backups 8 | . 5 3 Power . | . . . Propulsion 2 | . 2 . Utility 5 | . 2 3 Weapon 1 | . 1 . Tool/Special . | . . . Average Slot Usage (%) 99 | . 100 98 Engine 13 | . 14 13 Treads 27 | . 28 27 Device 13 | . 14 13 Storage 14 | . 14 14 Ballistic Gun 27 | . 28 27 Peak Build Rating 8 | 7 8 8 Average Rating 7 | 5 7 7 On Entrance 5 | . 7 8 Avg Prop Armor Cover (%) . | . . . Naked Turns . | . . . Heaviest Build 14 | 12 14 14 Greatest Support 40 | 40 40 40 Greatest Overweight (x) . | . . . Average Overweight (x) . | . . . Largest Inventory Capacity 8 | 8 8 8 Average Capacity 7 | 6 8 8 Most Carried 8 | 7 8 8 Average Carried 7 | 4 7 7 Final Capacity 8 | 8 8 8 Final Carried 8 | 6 8 5 Class Distribution -------------------- 100% | Mutant Dominant Class ---------------- Mutant | -10/Materials Mutant | -10/Mines Resources | -11 -10 -10 ----------- Run | Yrd Mat Min Matter Collected 570 | 298 226 46 Remotely . | . . . Salvage Created 577 | 117 414 46 Parts 43 | 8 34 1 Haulers Intercepted . | . . . Recyclers Shooed 2 | 1 . 1 Parts Field Recycled . | . . . Retrieved Matter . | . . . Parts Self-Destructed . | . . . Prevented . | . . . Parts Restored . | . . . Kills | -11 -10 -10 ------- Run | Yrd Mat Min Combat Hostiles Destroyed 14 | . 13 1 Guns 14 | . 13 1 Classes Destroyed 6 | 2 4 . Tunneler 2 | 2 . . Recycler 1 | 1 . . Operator 1 | . 1 . Watcher 1 | . 1 . Swarmer 6 | . 6 . Grunt 8 | . 7 1 Best Kill Streak 7 | 2 7 1 Combat Bots Only 7 | . 7 1 Max Kills in Single Turn 2 | 1 2 1 Gunslinging 1 | . 1 . Exploded . | . . . Melee . | . . . Uniques/NPCs Destroyed . | . . . Combat | -11 -10 -10 -------- Run | Yrd Mat Min Hostile Shots Fired 90 | . 51 39 Missed 18 | . 10 8 Hits 72 | . 41 31 Melee 1 | . . 1 Projectile 71 | . 41 30 AOE 21 | . . 21 Damage Taken 1300 | . 400 900 Core 264 | . 40 224 Absorbed by Shields . | . . . Core Remaining (%) 100 | 100 . . Volleys Fired 60 | 7 44 9 Largest 2 | 2 2 2 Hottest 40 | 40 40 40 Shots Fired 117 | 14 88 15 Gun 113 | 14 88 11 Cannon . | . . . Launcher 4 | . . 4 Special . | . . . Kinetic 113 | 14 88 11 Thermal . | . . . Explosive 4 | . . 4 Electromagnetic . | . . . Robot Hit Streak 14 | 10 14 5 Robot Miss Streak 4 | 1 4 4 Penetration Max . | . . . Secondary Targets 4 | . 3 1 Max Gunslinging Chain 1 | . 1 1 Shots Hit Robots 76 | 12 55 9 Core Hits 43 | 6 25 12 Critical Kills . | . . . Critical Parts Destroyed . | . . . Critical Strikes . | . . . Melee Attacks . | . . . Impact . | . . . Slashing . | . . . Piercing . | . . . Sneak Attacks . | . . . Combat Hostiles . | . . . Follow-up Attacks . | . . . Damage Inflicted 833 | 120 587 126 Guns 759 | 120 587 52 Cannons . | . . . Explosions 74 | . . 74 Melee . | . . . Ramming . | . . . Kinetic 759 | 120 587 52 Thermal . | . . . Explosive 74 | . . 74 Electromagnetic . | . . . Impact . | . . . Slashing . | . . . Piercing . | . . . Highest Corruption 3 | . 3 3 Average Corruption 2 | . 2 3 Corruption Purged . | . . . Corruption Blocked . | . . . Effects 18 | . 7 11 Message Errors 4 | . 2 2 Matter Fused 3 | . . 3 Heat Flow Errors 2 | . 1 1 Energy Discharges 4 | . 3 1 Data Loss (minor) 1 | . . 1 Data Loss (major) 2 | . 1 1 Misfires 1 | . . 1 Alerts 1 | . . 1 Overload Shots . | . . . Overflow Damage . | . . . Projectiles . | . . . Explosions . | . . . Melee . | . . . Knockbacks . | . . . Impact . | . . . Kinetic . | . . . Secondary . | . . . Self-Inflicted Damage . | . . . Shots . | . . . Rammed . | . . . Targets Rammed . | . . . Kicked . | . . . Crushed . | . . . Highest Temperature 171 | . 147 171 Average Temperature 58 | . 60 54 Received Heat Transfer 168 | . 126 42 Siege Activations . | . . . Martial Activations . | . . . Shielding Activations . | . . . Robots Disrupted . | . . . Combat Hostiles . | . . . Robots Corrupted . | . . . Combat Hostiles . | . . . Parts Fried . | . . . Impact Corruptions . | . . . Robots Melted . | . . . Combat Hostiles . | . . . Parts Melted . | . . . Heat Transferred . | . . . Parts Sabotaged . | . . . Parts Stolen . | . . . Parts Stripped . | . . . Power Chain Reactions . | . . . Alert | -11 -10 -10 ------- Run | Yrd Mat Min Maximum Alert Level . | . . . Low Security (%) 100 | 100 100 100 Level 1 . | . . . Level 2 . | . . . Level 3 . | . . . Level 4 . | . . . Level 5 . | . . . High Security . | . . . Max Security . | . . . Peak Influence 180 | 10 180 46 Initial 34 | . . 34 Average 40 | . 67 6 Influence Increases 504 | 15 424 65 Destroy 0b10 Robot/C 300 | . 260 40 Destroy 0b10 Robot/NC 25 | 15 10 . Destroy Leader 72 | . 62 10 Allied During Kill 6 | . . 6 Successful Hack 16 | . 16 . Select Force Hacks 60 | . 60 . Destroy Structure 10 | . 1 9 Lose Combat Pursuer 15 | . 15 . Influence Decreases 504 | 15 335 154 Entered New Map 55 | . . 55 Time Decay 430 | 15 335 80 Lost Part 19 | . . 19 Squads Dispatched 4 | . 4 . Investigation 2 | . 2 . Extermination . | . . . Reinforcement 2 | . 2 . Assault . | . . . Garrison . | . . . Intercept . | . . . Searches Triggered . | . . . Construction Impeded . | . . . Haulers Reinforced . | . . . Active Scanning Responses . | . . . Cargo Convoy Interrupts . | . . . Stealth | -11 -10 -10 --------- Run | Yrd Mat Min Distress Signals . | . . . Communications Jammed . | . . . Distress Signals . | . . . Times Spotted 33 | . 24 9 Peak Tracking Total 8 | . 6 8 Tactical Retreats 1 | . 1 . Traps | -11 -10 -10 ------- Run | Yrd Mat Min Traps Triggered 2 | . 2 . Indirectly . | . . . Trap Hack Attempts . | . . . Triggered . | . . . Disarmed . | . . . Reprogrammed . | . . . Reused . | . . . Traps Extracted . | . . . Installed . | . . . Triggered . | . . . Machines | -11 -10 -10 ---------- Run | Yrd Mat Min Machines Disabled . | . . . Max in Single Turn . | . . . Machines Repaired . | . . . Machines Dismantled . | . . . Machines Sabotaged . | . . . Overloaded Fab Kills . | . . . Hacking | -11 -10 -10 --------- Run | Yrd Mat Min Machines Accessed 7 | . 7 . Terminals 5 | . 5 . Fabricators . | . . . Repair Stations . | . . . Recycling Units 2 | . 2 . Scanalyzers . | . . . Garrison Access . | . . . Total Hacks 23 | . 23 . Successful 14 | . 14 . Failed 9 | . 9 . Catastrophic 2 | . 2 . Database Lockouts . | . . . Manual 19 | . 19 . Terminals 19 | . 19 . Fabricators . | . . . Repair Stations . | . . . Recycling Units 4 | . 4 . Scanalyzers . | . . . Garrison Access . | . . . Terminal Hacks 2 | . 2 . Terminal Index 1 | . 1 . Zone Layout 1 | . 1 . Fabricator Hacks . | . . . Repair Station Hacks . | . . . Recycling Unit Hacks 2 | . 2 . Retrieve Components 2 | . 2 . Scanalyzer . | . . . Garrison Access Hacks . | . . . Unauthorized Hacks 10 | . 10 . Terminals 8 | . 8 . Botnet 3 | . 3 . Skim 5 | . 5 . Fabricators . | . . . Repair Stations . | . . . Recycling Units 2 | . 2 . Tunnel 2 | . 2 . Scanalyzers . | . . . Garrison Access . | . . . Data Cores Recovered 1 | . 1 . Used . | . . . Hacking Detections 5 | . 5 . Full Trace Events . | . . . Feedback Events . | . . . Feedback Blocked . | . . . Robot Schematics Acquired . | . . . Robots Built . | . . . Authchips . | . . . Time . | . . . Total Robot Build Rating . | . . . Part Schematics Acquired . | . . . Parts Built . | . . . Authchips . | . . . Time . | . . . Total Part Build Rating . | . . . Part Studies Acquired . | . . . Parts Repaired . | . . . Time . | . . . Parts Recycled . | . . . Recycled Matter . | . . . Retrieved Matter . | . . . Retrieved Components 14 | . 14 . Parts Scanalyzed . | . . . Part Schematics Acquired . | . . . Parts Damaged . | . . . Bothacking | -11 -10 -10 ------------ Run | Yrd Mat Min Used RIF Installer . | . . . Robots Hacked . | . . . Non-combat . | . . . Combat . | . . . Robot Hacks Applied . | . . . Relay Couplers Released . | . . . Fabnet Peak Effective % . | . . . Robots Rewired . | . . . Allies Hacked . | . . . Hacks Repelled . | . . . Allies | -11 -10 -10 -------- Run | Yrd Mat Min Total Allies 2 | . . 2 Largest Group 2 | . . 2 Highest-Rated Group 38 | . . 38 Highest-Rated Ally 31 | . . 31 Total Orders . | . . . Ally Attacks 5 | . . 5 Total Damage 82 | . . 82 Kills 1 | . . 1 Allies Corrupted . | . . . Allies Melted . | . . . Intel | -11 -10 -10 ------- Run | Yrd Mat Min Active Infowar (turns) 1603 | 19 954 630 Seismic 1603 | 19 954 630 Robot Analysis Total . | . . . Derelict Logs Recovered 1 | . . 1 Drone Launches . | . . . Drone Recoveries . | . . . Exploration | -11 -10 -10 ------------- Run | Yrd Mat Min Turns Passed 1723 | 112 954 657 Spaces Moved 898 | 58 463 377 Core 21 | 21 . . Treads 877 | 37 463 377 Legs . | . . . Wheels . | . . . Hover . | . . . Flight . | . . . Fastest Speed 50 | 50 160 160 Average Speed 157 | 120 160 160 Slowest Speed 160 | 160 160 160 Overloaded Moves . | . . . Propulsion Burnouts . | . . . Robots Hopped . | . . . Potential Cave-ins . | . . . Cave-ins Triggered . | . . . Exploration Rate (%) 53 | 5 74 82 Regions Visited 2 Branch Regions 1 Pre-discovered Areas 4 | . 4 . Known Exits Taken 1 | . 1 . Unknown Exits Taken 1 | 1 . . Scrap Searched 2 | . . 2 Spaces Dug . | . . . Terrain Destroyed 12 | . . 12 Melee . | . . . Projectile . | . . . AOE 12 | . . 12 Terrain Rammed . | . . . Walls Destroyed . | . . . Machines Disabled . | . . . Actions | -11 -10 -10 --------- Run | Yrd Mat Min Total 1108 | 88 602 418 Wait 104 | 4 73 27 Move 896 | 57 462 377 Hop . | . . . Pick Up 21 | 13 7 1 Fast Attach . | . . . Attach 11 | 7 . 4 Detach . | . . . Swap 6 | . 6 . Drop 10 | . 10 . Fire 60 | 7 44 9 Melee . | . . . Ram . | . . . Kick . | . . . Crush . | . . . Escape Stasis . | . . . Rewire . | . . . Trap . | . . . Miscellaneous . | . . . Route ------- -11/Scrapyard -10/Materials (discovered 4 exits: *Mat x2 / *Min x2) -10/Mines (discovered 2 exits: *Mat x2) History --------- Turn | Location | Event 8 | -11/Scrapyard | Discovered new exit (range 15) 113 | -11/Scrapyard | Entered Materials 305 | -10/Materials | Build established: Mutant 404 | -10/Materials | Destroyed 7 combat bots 561 | -10/Materials | Discovered new exit (range 7) 709 | -10/Materials | Discovered new exit (range 7) 753 | -10/Materials | Learned Recycling recycling unit intel 803 | -10/Materials | Learned location of 2 exits from Mines 842 | -10/Materials | Learned location of Mines (-10) 871 | -10/Materials | Learned Storage stockpile data 897 | -10/Materials | Learned Materials stockpile data 913 | -10/Materials | Learned 2 Storage zone layouts 937 | -10/Materials | Identified exit to Mines 969 | -10/Materials | Learned location of 2 exits from Subcaves 1067 | -10/Materials | Entered Mines 1068 | -10/Mines | Identified exit to Materials 1101 | -10/Mines | Met a Derelict bent on vengeance 1690 | -10/Mines | Assembled infested the area 1714 | -10/Mines | Core integrity fell below 50% 1717 | -10/Mines | Core integrity fell below 20% 1724 | -10/Mines | Destroyed by D-53 Grenadier with Mini Grenade Launcher Last Messages --------------- 01705_ The unstable cave ceiling collapses. 01707_ as-34296 powers down. 01707_ as-83151 powers down. 01707_ as-41995 powers down. 01707_ as-41252 powers down. 01708_ The unstable cave ceiling collapses. 01709_ Lgt. Treads destroyed. 01712_ The unstable cave ceiling collapses. 01712_ Lgt. Assault Rifle destroyed. 01712_ Lgt. Armor Plating destroyed. 01713_ Lgt. Assault Rifle destroyed. 01715_ The unstable cave ceiling collapses. 01715_ D-53 Grenadier destroyed. 01716_ The unstable cave ceiling collapses. 01722_ Grenade Launcher destroyed. 01722_ Lgt. Treads destroyed. 01722_ as-99781 destroyed. 01723_ The unstable cave ceiling collapses. 01724_ Carbon-fiber Leg crushed. 01724_ The unstable cave ceiling collapses. Map ----- +----------------------------------------------------+ | | | | | | | | | | | | | | | | | | | | | | | | | | | | | | | | | | | | | | | | | ????????????????????#########????????????????????? | | ???????????????????## # ##???????????????????? | | ?????????????????### ##??????????????????? | | ????????????????## # #??####????????????? | | ????????????????# # # #### ##???????????? | | ????????????????# %@ ##??????????? | | ????????????????# # ### #??????????? | | ?????????????## # # #?# ##?????????? | | ?????????????# # #### ###???????? | | ?????????????# ## # #### ##??????? | | ?????????????# = #??????? | | ?????? ]%! #??????? | | ?????? #??????? | | ???????######## # d % < #??????? | | ??????????????# ##### ## ^ ##??????? | | ??????????????# #????# # # ##???????? | | ??????????????# ?????# ### # ## #????????? | | ??????????????# ??????#### ###?# # #????????? | | ??????????????# ?????????####???# # # #????????? | | ??????????????#?????????????????# # #????????? | | ????????????????????????????????# #????????? | | ????????????????????????????????# % % ##????????? | | ????????????????????????????????# ##?????????? | | ????????????????????????????????##% ##?????????? | | ????????????????????????????????## #?????????? | | ????????????????????????????##### #?????????? | | ????????????????????? ?????## #####?????? | | ????????????????????? ?????# #### #?????? | | ????????????????????? #???## ##??# ### #?????? | | ????????????????????? #???# #???# #?# #?????# | +----------------------------------------------------+ Best States ------------- Heat Dissipation 25 Energy Generation 10 Energy Capacity 250 Matter Stores 300 Matter Capacity 300 Sight Range 16 Terrain Scan Density 10 Armor Coverage 150 Evasion (%) 50 Recoil Reduction 2 Item Schematics ----------------- None Robot Schematics ------------------ None Fabricated ------------ Nothing Repaired ---------- Nothing Studied --------- None Alien Tech Used ----------------- None Achievements -------------- None Challenges ------------ None Game ------ Seed DynamicEncryptedMaul Manual? 0 Play Time 00:10:16 Cumulative 423.1 hours Start 2025.10.25 @ 23:59:53 End 2025.10.26 @ 01:20:52 Sessions 2 Manual Loads 0 Difficulty Rogue Special Mode None Game No. 549 Rogue 549 Adventurer 0 Explorer 0 Win Type - Total 12 Types 6/0/1/2/1/0/2/0/0/0 Lore% 89 Gallery% 84 Achievement% 53 Wizard Run 0 Options --------- Layout 0 ASCII 0 Keyboard 0 Movement Mouse Keybinds 0 Fullscreen 1 Font 24/Terminus Map View 76x50 Zoom Use 0% Tactical HUD 1 Map Filters NONE Filters NONE Steam 1 RUN: 7bc210c7-1b6a-4e47-83b4-afc88c646322